bitfinex-derivatives/quotes_BTCF0:USTF0_20250501
["timestamp","ask_amount","ask_price","bid_price","bid_amount"]
[1746091827829,0.6317762,95369.0,95368.0,0.352]
[1746091828239,0.3817762,95369.0,95368.0,0.23]
[1746091829434,0.4517762,95369.0,95368.0,0.23]
[1746091836050,0.4517762,95369.0,95368.0,0.352]
[1746091837252,0.4517762,95369.0,95368.0,0.23]
[1746091838144,0.4517762,95369.0,95368.0,0.352]
[1746091842147,0.3469202,95369.0,95368.0,0.352]
[1746091848057,0.2097242,95349.0,95348.0,0.00956806]
[1746091848253,0.9313242,95349.0,95348.0,0.06157314]
[1746091849056,1.0650242,95349.0,95348.0,0.06157314]
[1746091849245,1.0650242,95349.0,95348.0,0.19157314]
[1746091850759,1.0650242,95349.0,95348.0,0.18357314]
[1746091850951,1.0650242,95349.0,95348.0,0.18857314]
[1746091851458,1.0650242,95349.0,95348.0,0.187]
[1746091851959,1.0650242,95349.0,95348.0,0.127]
[1746091852753,1.0650242,95349.0,95348.0,0.137]
[1746091856261,1.0650242,95349.0,95348.0,0.2027]
[1746091859565,0.9980242,95349.0,95348.0,0.2027]
[1746091859767,0.7216,95349.0,95348.0,0.4124264]
[1746091859959,0.72164,95349.0,95348.0,0.4124264]
[1746091860166,0.5705642,95349.0,95348.0,0.4124264]
[1746091860465,0.3608,95349.0,95348.0,0.4124264]
[1746091860661,0.5705242,95349.0,95348.0,0.4124264]
[1746091861067,0.08003971,95354.0,95353.0,0.2097154]
[1746091861261,0.08003971,95354.0,95353.0,0.4697154]
[1746091861657,0.08007971,95354.0,95353.0,0.4697154]
[1746091861857,0.08007971,95354.0,95353.0,0.6084154]
[1746091862074,0.08007971,95354.0,95353.0,0.7304154]
[1746091862375,0.28979291,95354.0,95353.0,0.7304154]
[1746091862665,0.08007971,95354.0,95353.0,0.7304154]
[1746091862870,0.28979291,95354.0,95353.0,0.7324154]
[1746091863366,0.28979291,95354.0,95353.0,0.7334154]
[1746091863668,0.08007971,95354.0,95353.0,0.7334154]
[1746091864064,0.28979291,95354.0,95353.0,0.7334154]
[1746091864457,0.28975291,95354.0,95353.0,0.7334154]
[1746091864967,0.28979291,95354.0,95353.0,0.7334154]
[1746091865169,0.08007971,95354.0,95353.0,0.7334154]
[1746091865371,0.10671127,95361.0,95360.0,0.2097]
[1746091865570,0.10671127,95361.0,95360.0,0.8205]
[1746091865869,0.10671127,95361.0,95360.0,1.175364]
[1746091866171,0.10675127,95361.0,95360.0,1.297364]
[1746091866365,0.10675127,95361.0,95360.0,1.182064]
[1746091866959,4e-05,95361.0,95360.0,1.182064]
[1746091868168,4e-05,95361.0,95360.0,1.183064]
[1746091868572,0.34299938,95370.0,95367.0,0.0524206]
[1746091868871,0.2621023,95370.0,95369.0,0.2096802]
[1746091869060,0.2621023,95370.0,95369.0,0.4796802]
[1746091869369,0.2621023,95370.0,95369.0,0.6170802]
[1746091870162,0.001,95370.0,95369.0,0.7390802]
[1746091870568,0.210718,95370.0,95369.0,0.7390802]
[1746091871170,4e-05,95370.0,95369.0,0.7390802]
[1746091872277,4e-05,95370.0,95369.0,0.7400802]
[1746091873272,0.01798293,95372.0,95369.0,0.5304]
[1746091873465,5.401e-05,95380.0,95373.0,0.0524178]
[1746091873663,5.401e-05,95380.0,95374.0,0.1331]
[1746091873870,0.2096611,95378.0,95374.0,0.3831]
[1746091874071,0.00104,95376.0,95374.0,0.5051]
[1746091874469,0.001,95376.0,95374.0,0.5051]
[1746091874666,0.00104,95376.0,95374.0,0.5051]
[1746091875374,0.2107069,95376.0,95375.0,0.209667]
[1746091875679,0.2107069,95376.0,95375.0,0.459667]
[1746091875871,0.2117069,95376.0,95375.0,0.592767]
[1746091876071,0.2117069,95376.0,95375.0,0.714767]
[1746091876278,0.00204,95376.0,95375.0,0.714767]
[1746091876476,0.002,95376.0,95375.0,0.714767]
[1746091876685,0.2117048,95376.0,95375.0,0.714767]
[1746091878068,0.2127048,95376.0,95375.0,0.714767]
[1746091882385,0.2127048,95376.0,95375.0,0.5051]
[1746091882575,0.2786048,95376.0,95375.0,0.5051]
[1746091883581,0.2786048,95376.0,95375.0,0.714767]
[1746091883787,0.2786048,95376.0,95375.0,0.5051]
[1746091883983,0.2786048,95376.0,95375.0,0.714767]
[1746091885396,0.2786048,95376.0,95375.0,0.5051]
[1746091885588,0.2786048,95376.0,95375.0,0.647367]
[1746091886386,0.2786048,95376.0,95375.0,0.372]
[1746091886781,0.2786048,95376.0,95375.0,0.581667]
[1746091888577,0.2786048,95376.0,95375.0,0.717967]
[1746091893983,0.2786048,95376.0,95375.0,0.581667]
[1746091896194,0.2786048,95376.0,95375.0,0.372]
[1746091898595,0.2786048,95376.0,95375.0,0.581667]
[1746091901196,0.2786048,95376.0,95375.0,0.372]
[1746091902597,0.2786048,95376.0,95375.0,0.422]
[1746091902989,0.2786048,95376.0,95375.0,0.4909]
[1746091904394,0.2786048,95376.0,95375.0,0.5561]
[1746091905089,0.2286048,95376.0,95375.0,0.5061]
[1746091905292,0.2286048,95376.0,95375.0,0.715767]
[1746091905695,0.2286048,95376.0,95375.0,0.5061]
[1746091906300,0.2286048,95376.0,95375.0,0.715767]
[1746091906498,0.2286048,95376.0,95375.0,0.5061]
[1746091906887,0.2285648,95376.0,95375.0,0.5061]
[1746091907087,0.2285648,95376.0,95375.0,0.715767]
[1746091907904,0.2285648,95376.0,95375.0,0.5061]
[1746091908098,0.2285648,95376.0,95375.0,0.715767]
[1746091908497,0.2285648,95376.0,95375.0,0.5061]
[1746091910499,0.2285648,95376.0,95375.0,0.715767]
[1746091910688,0.2285648,95376.0,95375.0,0.5061]
[1746091912187,0.2285648,95376.0,95375.0,0.36250149]
[1746091912594,0.1626648,95376.0,95375.0,0.57216849]
[1746091913292,0.1626648,95376.0,95375.0,0.36250149]
[1746091914696,0.1626648,95376.0,95375.0,0.57216849]
[1746091918303,0.001,95376.0,95375.0,0.57216849]
[1746091918495,0.00104,95376.0,95375.0,0.57216849]
[1746091918692,0.001,95376.0,95375.0,0.57216849]
[1746091918892,0.00104,95376.0,95375.0,0.57216849]
[1746091920404,0.001,95376.0,95375.0,0.57216849]
[1746091920708,0.00104,95376.0,95375.0,0.57216849]
[1746091930006,0.06684,95376.0,95375.0,0.57216849]
[1746091931498,0.2765048,95376.0,95375.0,0.57216849]
[1746091931699,0.06684,95376.0,95375.0,0.57216849]
[1746091932706,0.2765048,95376.0,95375.0,0.57216849]
[1746091932901,0.06684,95376.0,95375.0,0.57216849]
[1746091933307,0.2765048,95376.0,95375.0,0.57216849]
[1746091933709,0.06684,95376.0,95375.0,0.98796849]
[1746091934012,0.2740473,95384.0,95383.0,0.2096495]
[1746091934202,0.23375363,95385.0,95384.0,0.2096473]
[1746091934402,0.23369962,95385.0,95384.0,0.6314473]
[1746091934609,0.23373962,95385.0,95384.0,0.6314473]
[1746091935211,0.23373962,95385.0,95384.0,0.4729]
[1746091935401,0.23373962,95385.0,95384.0,0.69810705]
[1746091936707,0.23573962,95385.0,95384.0,0.69810705]
[1746091937213,0.23773962,95385.0,95384.0,0.69810705]
[1746091937810,0.30663962,95385.0,95384.0,0.69810705]
[1746091940812,0.30663962,95385.0,95384.0,0.4729]
[1746091941003,0.30663962,95385.0,95384.0,0.402]
[1746091941410,0.30663962,95385.0,95384.0,0.6116473]
[1746091945822,0.30663962,95385.0,95384.0,0.402]
[1746091946022,0.30663962,95385.0,95384.0,0.6116473]
[1746091949719,0.37748969,95398.0,95392.0,0.2096297]
[1746091949922,0.2096275,95393.0,95392.0,0.5331897]
[1746091950125,0.2096675,95393.0,95392.0,0.5331897]
[1746091950326,0.2096675,95393.0,95392.0,0.6551897]
[1746091950520,0.2096675,95393.0,95392.0,0.7943897]
[1746091951020,0.2136675,95393.0,95392.0,0.7943897]
[1746091951223,0.2176675,95393.0,95392.0,0.7308297]
[1746091951429,0.2176275,95393.0,95392.0,0.7943897]
[1746091951616,0.2176675,95393.0,95392.0,0.7943897]
[1746091952215,0.01668969,95398.0,95394.0,0.0524061]
[1746091952527,0.33111999,95398.0,95397.0,0.2096187]
[1746091952827,0.33115999,95398.0,95397.0,0.47751523]
[1746091953023,0.39695999,95398.0,95397.0,0.47751523]
[1746091953324,0.39995999,95398.0,95397.0,0.59951523]
[1746091953716,0.40295999,95398.0,95397.0,0.59951523]
[1746091953918,0.40295999,95398.0,95397.0,0.61374542]
[1746091954219,0.40095999,95398.0,95397.0,0.61374542]
[1746091954416,0.40395999,95398.0,95397.0,0.61374542]
[1746091954817,0.40395999,95398.0,95397.0,0.67730542]
[1746091956419,5.401e-05,95408.0,95399.0,0.0524034]
[1746091956616,5.401e-05,95408.0,95399.0,0.3024034]
[1746091956815,0.10671127,95413.0,95405.0,0.20347039]
[1746091957120,0.31117835,95418.0,95417.0,0.2095748]
[1746091957326,0.0709,95425.0,95421.0,0.2095638]
[1746091957531,0.34347972,95423.0,95422.0,0.2751638]
[1746091957718,0.34347972,95423.0,95422.0,0.5987238]
[1746091958225,0.2095616,95423.0,95422.0,0.7207238]
[1746091959231,0.2096016,95423.0,95422.0,0.7207238]
[1746091960732,0.2096016,95423.0,95422.0,0.7227238]
[1746091963633,4e-05,95423.0,95422.0,0.7227238]
[1746091964729,0.2096016,95423.0,95422.0,0.7227238]
[1746091965819,0.2096016,95423.0,95422.0,0.6591638]
[1746091966024,0.2096016,95423.0,95422.0,0.7227238]
[1746091967320,0.2096016,95423.0,95422.0,0.8275198]
[1746091967520,4e-05,95423.0,95422.0,0.8275198]
[1746091967926,0.2096016,95423.0,95422.0,0.8275198]
[1746091968319,4e-05,95423.0,95422.0,0.8275198]
[1746091971720,4e-05,95423.0,95422.0,1.3124198]
[1746091971926,0.00018,95424.0,95423.0,0.2095616]
[1746091972130,0.00018,95424.0,95423.0,0.6863576]
[1746091972326,0.00018,95424.0,95423.0,0.8217576]
[1746091973130,0.00022,95424.0,95423.0,0.8227576]
[1746091973432,0.00018,95424.0,95423.0,0.8227576]
[1746091973734,0.00022,95424.0,95423.0,0.8227576]
[1746091975830,0.00022,95424.0,95423.0,1.2385576]
[1746091976336,0.00022,95424.0,95423.0,1.3027176]
[1746091977237,0.00022,95424.0,95423.0,1.1807176]
[1746091977823,0.00022,95424.0,95423.0,1.19605728]
[1746091979136,0.00022,95424.0,95423.0,1.31805728]
[1746091979328,0.00018,95424.0,95423.0,1.31805728]
[1746091979536,0.00022,95424.0,95423.0,1.31805728]
[1746091979926,0.00022,95424.0,95423.0,1.3027176]
[1746091980330,0.00022,95424.0,95423.0,1.1807176]
[1746091981225,0.00022,95424.0,95423.0,1.1806776]
[1746091981433,0.00022,95424.0,95423.0,1.1165576]
[1746091981636,0.00022,95424.0,95423.0,1.1806776]
[1746091983133,0.00022,95424.0,95423.0,1.0067816]
[1746091983327,0.06602,95424.0,95423.0,0.9426616]
[1746091983533,0.06602,95424.0,95423.0,1.0067816]
[1746091986143,0.18802,95424.0,95423.0,1.0067816]
[1746091992441,0.18798,95424.0,95423.0,1.0067816]
[1746091992637,0.18802,95424.0,95423.0,1.0067816]
[1746091993544,0.17574003,95424.0,95423.0,1.0780816]
[1746091996055,0.10874792,95424.0,95423.0,1.1828776]
[1746091996243,0.08648593,95424.0,95423.0,1.1828776]
[1746091996443,0.08644593,95424.0,95423.0,1.1828776]
[1746091996653,0.08648593,95424.0,95423.0,1.1828776]
[1746091997153,4e-05,95424.0,95423.0,1.1828776]
[1746091998338,4e-05,95424.0,95423.0,0.973316]
[1746091998653,4e-05,95424.0,95423.0,1.1828776]
[1746091999845,0.10486,95424.0,95423.0,0.9404816]
[1746092000360,0.22686,95424.0,95423.0,1.0134816]
[1746092000758,0.12204,95424.0,95423.0,1.0134816]
[1746092000958,0.19524,95424.0,95423.0,1.0134816]
[1746092001358,0.26834,95424.0,95423.0,1.0920816]
[1746092003063,0.26834,95424.0,95423.0,0.9404816]
[1746092004151,0.26834,95424.0,95423.0,1.0143816]
[1746092006063,0.19524,95424.0,95423.0,1.0143816]
[1746092006659,0.26774,95424.0,95423.0,1.0143816]
[1746092007555,0.26774,95424.0,95423.0,1.0153016]
[1746092009361,0.19524,95424.0,95423.0,1.0153016]
[1746092009955,0.19524,95424.0,95423.0,1.0888016]
[1746092010864,0.122,95424.0,95423.0,1.0888016]
[1746092011067,0.12204,95424.0,95423.0,1.0888016]
[1746092015665,0.12204,95424.0,95423.0,1.0237616]
[1746092015869,0.19584,95424.0,95423.0,1.0888016]
[1746092019262,0.07384,95424.0,95423.0,1.2108016]
[1746092020679,0.0135376,95426.0,95423.0,1.0536298]
[1746092021177,0.1355776,95426.0,95423.0,0.9316298]
[1746092021676,0.1355776,95426.0,95425.0,0.17435799]
[1746092021872,0.2080776,95426.0,95425.0,0.42435799]
[1746092022074,0.2080776,95426.0,95425.0,0.49895799]
[1746092022765,0.2080776,95426.0,95425.0,0.91475799]
[1746092023059,0.2080776,95426.0,95425.0,0.91675799]
[1746092023265,0.2080776,95426.0,95425.0,0.98179799]
[1746092023874,0.2768776,95426.0,95425.0,0.98179799]
[1746092025663,0.2768776,95426.0,95425.0,0.84215799]
[1746092025872,0.3816976,95426.0,95425.0,0.90719799]
[1746092035685,0.3816976,95426.0,95425.0,0.84215799]
[1746092035872,0.3816976,95426.0,95425.0,0.90727799]
[1746092036479,0.4548976,95426.0,95425.0,0.90727799]
[1746092042678,0.3091976,95426.0,95425.0,0.90727799]
[1746092044384,0.3876976,95426.0,95425.0,0.90727799]
[1746092048186,0.7484976,95426.0,95425.0,0.90727799]
[1746092049300,0.6436776,95426.0,95425.0,0.90727799]
[1746092049484,0.7484976,95426.0,95425.0,0.90727799]
[1746092051700,0.7484976,95426.0,95425.0,0.84215799]
[1746092051889,0.7484576,95426.0,95425.0,0.90727799]
[1746092052197,0.74861261,95426.0,95425.0,0.90727799]
[1746092057405,0.67011261,95426.0,95425.0,0.90727799]
[1746092057995,0.60131261,95426.0,95425.0,0.90727799]
[1746092058194,0.47931261,95426.0,95425.0,0.90727799]
[1746092058391,0.47935261,95426.0,95425.0,0.90727799]
[1746092060209,0.24055261,95426.0,95425.0,0.90727799]
[1746092060595,0.31395261,95426.0,95425.0,0.90727799]
[1746092061301,0.31395261,95426.0,95425.0,0.84215799]
[1746092061602,0.67500761,95426.0,95425.0,0.252]
[1746092062000,0.67500761,95426.0,95425.0,0.4615572]
[1746092071401,0.13573261,95426.0,95425.0,0.4615572]
[1746092071609,0.10597111,95426.0,95425.0,0.5262372]
[1746092072008,0.10597111,95426.0,95425.0,2.1712372]
[1746092072204,4e-05,95426.0,95425.0,2.1712372]
[1746092073104,0.10486,95426.0,95425.0,2.1712372]
[1746092077013,4e-05,95426.0,95425.0,2.1065572]
[1746092077222,0.10486,95426.0,95425.0,2.1712372]
[1746092077604,0.10486,95426.0,95425.0,2.1065572]
[1746092077807,0.10486,95426.0,95425.0,2.1712372]
[1746092078209,0.10486,95426.0,95425.0,2.1065572]
[1746092078413,0.10486,95426.0,95425.0,2.1712372]
[1746092084519,0.10482,95426.0,95425.0,2.1712372]
[1746092084816,0.10486,95426.0,95425.0,2.1712372]
[1746092085217,0.10486,95426.0,95425.0,2.33022422]
[1746092085424,4e-05,95426.0,95425.0,2.33022422]
[1746092085608,4e-05,95426.0,95425.0,2.26554422]
[1746092085811,4e-05,95426.0,95425.0,2.33022422]
[1746092086307,0.008,95427.0,95426.0,0.209555]
[1746092086508,0.30007781,95428.0,95427.0,0.2095528]
[1746092086712,0.30007781,95428.0,95427.0,0.5643448]
[1746092086913,0.30007781,95428.0,95427.0,0.7149448]
[1746092087109,0.30007781,95428.0,95427.0,2.2149448]
[1746092087321,0.30011781,95428.0,95427.0,2.2149448]
[1746092088707,0.30011781,95428.0,95427.0,2.2189448]
[1746092089517,0.30011781,95428.0,95427.0,2.1141528]
[1746092090519,4e-05,95428.0,95427.0,2.1141528]
[1746092092607,4e-05,95428.0,95427.0,2.1787128]
[1746092094718,0.36687912,95434.0,95433.0,0.2095396]
[1746092095017,0.36687912,95434.0,95433.0,0.4395396]
[1746092095222,0.48891912,95434.0,95433.0,0.4395396]
[1746092096427,0.48891912,95434.0,95433.0,0.4405396]
[1746092096918,0.12204,95434.0,95433.0,0.4415396]
[1746092097522,0.12204,95434.0,95433.0,0.5060996]
[1746092098516,0.3623,95465.0,95433.0,0.29656]
[1746092098816,0.04894001,95449.0,95448.0,0.2095067]
[1746092099016,0.04894001,95449.0,95448.0,2.2196667]
[1746092099221,0.35486001,95449.0,95448.0,2.2196667]
[1746092099420,0.22682,95449.0,95448.0,2.22733529]
[1746092099612,0.122,95449.0,95448.0,2.22733529]
[1746092101023,0.00831081,95451.0,95448.0,2.59887279]
[1746092101319,7.291e-05,95473.0,95471.0,0.052364]
[1746092101519,0.10482,95472.0,95471.0,0.4918202]
[1746092101826,0.18776,95473.0,95472.0,0.209454]
[1746092102017,0.0829,95473.0,95472.0,0.469454]
[1746092102209,0.18776,95473.0,95472.0,0.469454]
[1746092102716,0.18776,95473.0,95472.0,0.548254]
[1746092102921,0.18776,95473.0,95472.0,0.469454]
[1746092103132,0.30976,95473.0,95472.0,0.469454]
[1746092104220,0.30976,95473.0,95472.0,0.534014]
[1746092104621,0.31276,95473.0,95472.0,0.534014]
[1746092104818,0.31576,95473.0,95472.0,0.534014]
[1746092105920,0.31576,95473.0,95472.0,0.469454]
[1746092106524,0.31576,95473.0,95472.0,0.534014]
[1746092107024,0.21094,95473.0,95472.0,0.534014]
[1746092107324,0.31576,95473.0,95472.0,0.534014]
[1746092111614,0.31572,95473.0,95472.0,0.534014]
[1746092111818,0.31576,95473.0,95472.0,0.534014]
[1746092117418,0.31572,95473.0,95472.0,0.534014]
[1746092117619,0.31576,95473.0,95472.0,0.618814]
[1746092118024,0.31576,95473.0,95472.0,0.534014]
[1746092118228,0.19376,95473.0,95472.0,0.656014]
[1746092119029,0.19376,95473.0,95472.0,0.591454]
[1746092119223,0.19376,95473.0,95472.0,0.656014]
[1746092126731,0.19376,95473.0,95472.0,0.591454]
[1746092126936,0.19376,95473.0,95472.0,0.735854]
[1746092127540,0.19376,95473.0,95472.0,0.5264]
[1746092127728,0.19376,95473.0,95472.0,0.735854]
[1746092129736,0.55456,95473.0,95472.0,0.735854]
[1746092131831,0.55456,95473.0,95472.0,0.656254]
[1746092134130,0.55456,95473.0,95472.0,2.034254]
[1746092134334,0.55456,95473.0,95472.0,1.969454]
[1746092134537,0.55456,95473.0,95472.0,2.034254]
[1746092134739,0.7640118,95473.0,95472.0,1.76]
[1746092135032,0.2094694,95465.0,95464.0,0.4213136]
[1746092135234,0.5702694,95465.0,95464.0,0.5613136]
[1746092135437,0.5702694,95465.0,95464.0,2.0613136]
[1746092135640,0.5702694,95465.0,95464.0,0.5613136]
[1746092135935,0.5235,95465.0,95464.0,0.5613136]
[1746092136136,0.7329694,95465.0,95464.0,0.5613136]
[1746092136331,0.8377214,95465.0,95464.0,0.5613136]
[1746092136526,0.628252,95465.0,95464.0,0.5613136]
[1746092136737,0.631252,95465.0,95464.0,0.5613136]
[1746092137242,0.5265,95465.0,95464.0,0.5613136]
[1746092137429,0.5295,95465.0,95464.0,0.5613136]
[1746092138739,0.7389694,95465.0,95464.0,0.5613136]
[1746092138939,0.7389694,95465.0,95464.0,0.3494695]
[1746092140331,0.5295,95465.0,95464.0,0.3494695]
[1746092141939,0.7389694,95465.0,95464.0,0.3494695]
[1746092149844,0.5295,95465.0,95464.0,0.3494695]
[1746092150039,0.4504,95465.0,95464.0,0.3494695]
[1746092150347,0.36684,95465.0,95464.0,0.4406695]
[1746092151143,0.36684,95465.0,95464.0,0.5626695]
[1746092151847,0.00604,95465.0,95464.0,2.0626695]
[1746092152245,0.0913,95478.0,95466.0,0.0523665]
[1746092152445,0.1004482,95479.0,95472.0,0.3608]
[1746092152648,0.1004482,95479.0,95473.0,0.3164629]
[1746092152847,0.1004482,95479.0,95473.0,0.5564629]
[1746092153244,4e-05,95478.0,95473.0,0.5564629]
[1746092153455,0.1004482,95479.0,95473.0,0.5564629]
[1746092153644,4e-05,95478.0,95476.0,0.0523613]
[1746092153848,4e-05,95478.0,95477.0,0.3851431]
[1746092154045,4e-05,95478.0,95477.0,0.6251431]
[1746092154245,4e-05,95478.0,95477.0,0.7471431]
[1746092154442,0.002,95478.0,95477.0,2.2471431]
[1746092154752,0.00204,95478.0,95477.0,2.2471431]
[1746092154944,0.0163482,95479.0,95478.0,0.2094409]
[1746092155143,0.0163482,95479.0,95478.0,0.4894409]
[1746092155351,0.0163482,95479.0,95478.0,0.7326009]
[1746092155854,0.0163482,95479.0,95478.0,2.2326009]
[1746092157548,0.0163482,95479.0,95478.0,2.2336009]
[1746092157853,0.0163482,95479.0,95478.0,2.2346009]
[1746092160455,0.0003482,95479.0,95478.0,2.2346009]
[1746092160754,9.842e-05,95497.0,95479.0,0.0523594]
[1746092160954,0.0908,95487.0,95486.0,0.2094233]
[1746092161145,0.5736,95487.0,95486.0,0.4694233]
[1746092161451,0.0837,95489.0,95488.0,0.2094189]
[1746092161658,0.0837,95489.0,95488.0,0.4494189]
[1746092162047,0.2057,95489.0,95488.0,1.9494189]
[1746092162557,0.01928311,95493.0,95492.0,0.2094102]
[1746092162751,0.01928311,95493.0,95492.0,0.8002102]
[1746092163163,0.14128311,95493.0,95492.0,2.3002102]
[1746092163449,0.14124311,95493.0,95492.0,2.31298155]
[1746092163653,0.14128311,95493.0,95492.0,2.31298155]
[1746092166956,1e-08,95496.0,95495.0,0.2094036]
[1746092167258,1e-08,95496.0,95495.0,0.5439636]
[1746092167747,1e-08,95496.0,95495.0,2.2203636]
[1746092168145,0.12204001,95496.0,95495.0,2.2203636]
[1746092168651,4.001e-05,95496.0,95495.0,2.2203636]
[1746092169253,1e-08,95496.0,95495.0,2.2203636]
[1746092169562,0.05296635,95500.0,95499.0,0.2093948]
[1746092169858,0.05296635,95500.0,95499.0,0.4593948]
[1746092170061,0.17500635,95500.0,95499.0,0.4593948]
[1746092170260,0.17500635,95500.0,95499.0,2.0239548]
[1746092170557,0.17500635,95500.0,95499.0,2.2002548]
[1746092170857,0.12354,95500.0,95499.0,2.2002548]
[1746092171264,0.12354,95500.0,95499.0,2.2012548]
[1746092171656,0.21604,95500.0,95499.0,2.2022548]
[1746092172254,0.21604,95500.0,95499.0,2.1376948]
[1746092172560,0.21604,95500.0,95499.0,1.84538713]
[1746092172759,0.5164326,95500.0,95499.0,2.03364193]
[1746092172954,0.5164326,95500.0,95499.0,1.96908193]
[1746092173262,0.30704,95500.0,95499.0,2.03364193]
[1746092174663,0.21604,95500.0,95499.0,2.03364193]
[1746092174857,0.21604,95500.0,95499.0,2.12414193]
[1746092175558,0.1235,95500.0,95499.0,2.12414193]
[1746092175762,0.12354,95500.0,95499.0,2.12414193]
[1746092180075,0.12354,95500.0,95499.0,2.03364193]
[1746092180280,0.12354,95500.0,95499.0,2.12494193]
[1746092180780,0.12354,95500.0,95499.0,2.03364193]
[1746092181474,0.12354,95500.0,95499.0,2.21124193]
[1746092182370,0.12354,95500.0,95499.0,2.14668193]
[1746092182571,0.12354,95500.0,95499.0,2.21124193]
[1746092183071,0.12354,95500.0,95499.0,2.14668193]
[1746092183267,0.12354,95500.0,95499.0,2.21124193]
[1746092183673,0.12354,95500.0,95499.0,2.12054193]
[1746092184976,0.12354,95500.0,95499.0,2.05598193]
[1746092185177,0.12354,95500.0,95499.0,2.12066193]
[1746092185772,0.3329326,95500.0,95499.0,1.75968713]
[1746092186068,0.3329326,95500.0,95499.0,1.82436713]
[1746092186269,0.3329326,95500.0,95499.0,0.25968713]
[1746092186468,0.3329326,95500.0,95499.0,0.32436713]
[1746092186867,0.5059326,95500.0,95499.0,0.32436713]
[1746092187067,0.5059326,95500.0,95499.0,0.53376193]
[1746092188075,0.5059326,95500.0,95499.0,0.46908193]
[1746092189080,0.5059326,95500.0,95499.0,0.25968713]
[1746092189278,0.5059326,95500.0,95499.0,0.46908193]
[1746092189279,0.3839326,95500.0,95499.0,0.46908193]
[1746092189676,0.4886446,95500.0,95499.0,0.25968713]
[1746092189873,0.4886446,95500.0,95499.0,0.46908193]
[1746092190273,0.4886446,95500.0,95499.0,0.25968713]
[1746092197182,0.8606446,95500.0,95499.0,0.25968713]
[1746092197887,0.8606446,95500.0,95499.0,0.25868713]
[1746092198381,0.6106446,95500.0,95499.0,0.25868713]
[1746092198773,0.9714446,95500.0,95499.0,0.25868713]
[1746092199185,0.8494446,95500.0,95499.0,0.25868713]
[1746092199582,0.8494446,95500.0,95499.0,0.25768713]
[1746092199790,0.8494446,95500.0,95499.0,0.25868713]
[1746092200780,0.2094321,95482.0,95479.0,0.00157084]
[1746092200980,0.2094321,95482.0,95481.0,0.40882548]
[1746092201186,0.2094321,95482.0,95481.0,0.53082548]
[1746092201591,0.4014641,95482.0,95481.0,0.53082548]
[1746092201780,0.2094452,95476.0,95475.0,0.2118441]
[1746092201981,0.209465,95467.0,95466.0,0.26607572]
[1746092202183,0.209465,95467.0,95466.0,0.54607572]
[1746092202382,0.675013,95467.0,95466.0,0.56621344]
[1746092202791,0.849813,95467.0,95466.0,0.56621344]
[1746092203289,0.971813,95467.0,95466.0,0.55904037]
[1746092203491,0.971813,95467.0,95466.0,0.56404037]
[1746092203691,0.971813,95467.0,95466.0,0.55904037]
[1746092203891,0.971813,95467.0,95466.0,0.56004037]
[1746092204087,0.971813,95467.0,95466.0,0.55504037]
[1746092204288,0.971813,95467.0,95466.0,0.28896465]
[1746092205086,0.849813,95467.0,95466.0,0.28896465]
[1746092205284,0.849813,95467.0,95466.0,0.28796465]
[1746092207797,0.384265,95467.0,95466.0,0.37556465]
[1746092207994,0.384305,95467.0,95466.0,0.46666465]
[1746092208296,0.209505,95467.0,95466.0,0.58866465]
[1746092208486,0.209465,95467.0,95466.0,0.68026465]
[1746092208794,0.209505,95467.0,95466.0,0.88973185]
[1746092211292,4e-05,95467.0,95466.0,0.88973185]
[1746092211486,5.401e-05,95476.0,95475.0,0.2094474]
[1746092211691,5.401e-05,95476.0,95475.0,0.8402474]
[1746092212002,0.2094329,95482.0,95481.0,0.261788]
[1746092212297,0.2094329,95482.0,95481.0,0.6114299]
[1746092212697,0.2094278,95484.0,95483.0,0.2094277]
[1746092212897,0.2094278,95484.0,95483.0,0.4694277]
[1746092213099,0.2094278,95484.0,95483.0,0.5914277]
[1746092213299,0.2094278,95484.0,95483.0,0.6795277]
[1746092213500,0.2094249,95486.0,95485.0,0.2094251]
[1746092213796,0.2094249,95486.0,95485.0,0.8002251]
[1746092214195,0.2094249,95486.0,95485.0,0.9222251]
[1746092214508,0.2094249,95486.0,95485.0,0.7128]
[1746092216302,0.2094249,95486.0,95485.0,0.9242255]
[1746092218503,0.2094249,95486.0,95485.0,0.7148]
[1746092218803,0.3824249,95486.0,95485.0,0.7148]
[1746092219003,0.3824249,95486.0,95485.0,0.354]
[1746092220095,0.3824249,95486.0,95485.0,0.232]
[1746092222706,0.2094249,95486.0,95485.0,0.232]
[1746092223003,0.3002249,95486.0,95485.0,0.232]
[1746092223796,0.3904249,95486.0,95485.0,0.232]
[1746092225498,0.2094249,95486.0,95485.0,0.232]
[1746092226208,0.2985249,95486.0,95485.0,0.232]
[1746092226711,0.2094249,95486.0,95485.0,0.8022255]
[1746092227109,0.2094649,95486.0,95485.0,0.9242255]
[1746092227498,0.2094649,95486.0,95485.0,0.5634255]
[1746092227710,0.3820649,95486.0,95485.0,0.354]
[1746092228103,0.8648649,95486.0,95485.0,0.232]
[1746092229110,0.7428649,95486.0,95485.0,0.232]
[1746092230209,0.6580649,95486.0,95485.0,0.5634255]
[1746092230413,0.2094249,95486.0,95485.0,0.5634255]
[1746092230613,0.2094649,95486.0,95485.0,0.5634255]
[1746092230806,0.2094249,95486.0,95485.0,0.5634255]
[1746092231309,0.2094649,95486.0,95485.0,0.5634255]
[1746092232009,0.2094649,95486.0,95485.0,0.354]
[1746092232211,0.4702649,95486.0,95485.0,0.354]
[1746092232602,0.4702649,95486.0,95485.0,0.5299]
[1746092233011,0.4702649,95486.0,95485.0,0.7393255]
[1746092233900,0.4702649,95486.0,95485.0,0.7383255]
[1746092234101,0.4702649,95486.0,95485.0,0.7393255]
[1746092234300,0.4702649,95486.0,95485.0,0.7423255]
[1746092234505,0.4702649,95486.0,95485.0,0.7453255]
[1746092235009,0.4702649,95486.0,95485.0,0.5319]
[1746092235216,0.4702649,95486.0,95485.0,0.5349]
[1746092235616,0.4702649,95486.0,95485.0,0.5359]
[1746092236518,0.4702649,95486.0,95485.0,0.7453255]
[1746092236719,0.3827649,95486.0,95485.0,0.7453255]
[1746092237212,0.3827649,95486.0,95485.0,0.7443255]
[1746092237412,0.3827649,95486.0,95485.0,0.5349]
[1746092237712,0.3827649,95486.0,95485.0,0.7443255]
[1746092237911,0.3827249,95486.0,95485.0,0.7443255]
[1746092238113,0.3827649,95486.0,95485.0,0.7413255]
[1746092238323,0.3827649,95486.0,95485.0,0.359]
[1746092238511,0.4699649,95486.0,95485.0,0.359]
[1746092240320,0.4699649,95486.0,95485.0,0.36]
[1746092240624,0.4699649,95486.0,95485.0,0.356]